[Event "*** Titled Tuesday Blitz"]
[Site "Chess.com"]
[Date "2019.09.03"]
[Round "4"]
[White "ChristopherYoo"]
[Black "GCamachoMartinez"]
[Result "0-1"]
[WhiteElo "2576"]
[BlackElo "2434"]
[TimeControl "180+2"]
[EndTime "15:53:02 PDT"]
[Termination "GCamachoMartinez won by checkmate"]

1. e4 {[%clk 0:03:01.9]} 1... e5 {[%clk 0:03:00.8]} 2. Nf3 {[%clk 0:03:00.5]}
2... Nf6 {[%clk 0:03:02.1]} 3. Nxe5 {[%clk 0:02:53.4]} 3... d6 {[%clk
0:03:03.5]} 4. Nc4 {[%clk 0:02:44.2]} 4... Nxe4 {[%clk 0:03:04.6]} 5. Qe2 {[%clk
0:02:44.5]} 5... Qe7 {[%clk 0:03:04.8]} 6. Ne3 {[%clk 0:02:44.8]} 6... c6 {[%clk
0:02:55.6]} 7. c4 {[%clk 0:02:43.9]} 7... g6 {[%clk 0:02:46.6]} 8. Nc3 {[%clk
0:02:44]} 8... Nxc3 {[%clk 0:02:47.4]} 9. bxc3 {[%clk 0:02:37]} 9... Bg7 {[%clk
0:02:49.3]} 10. g3 {[%clk 0:02:37.6]} 10... O-O {[%clk 0:02:49.6]} 11. Bg2
{[%clk 0:02:37.2]} 11... Nd7 {[%clk 0:02:46.7]} 12. O-O {[%clk 0:02:37.5]} 12...
Nf6 {[%clk 0:02:47.4]} 13. d4 {[%clk 0:02:29.3]} 13... Bd7 {[%clk 0:02:15.9]}
14. Ba3 {[%clk 0:02:23.7]} 14... Rfe8 {[%clk 0:02:16.2]} 15. Rfe1 {[%clk
0:01:41.3]} 15... Rad8 {[%clk 0:02:16.6]} 16. Qd2 {[%clk 0:01:24.7]} 16... Qf8
{[%clk 0:01:41.9]} 17. Rab1 {[%clk 0:01:20.9]} 17... Bc8 {[%clk 0:01:42.7]} 18.
Qd3 {[%clk 0:01:11.5]} 18... h5 {[%clk 0:01:26.3]} 19. h4 {[%clk 0:00:58.5]}
19... Ng4 {[%clk 0:01:26.9]} 20. Nxg4 {[%clk 0:00:57.4]} 20... hxg4 {[%clk
0:01:28.8]} 21. Be4 {[%clk 0:00:45.5]} 21... Qe7 {[%clk 0:01:23.2]} 22. Kf1
{[%clk 0:00:36.4]} 22... Qf6 {[%clk 0:01:23.9]} 23. Kg1 {[%clk 0:00:27.1]} 23...
Re7 {[%clk 0:01:24.5]} 24. Bg2 {[%clk 0:00:25.6]} 24... Rde8 {[%clk 0:01:25.4]}
25. Rxe7 {[%clk 0:00:26.1]} 25... Rxe7 {[%clk 0:01:26.3]} 26. Qd2 {[%clk
0:00:27.3]} 26... Kh7 {[%clk 0:01:22.9]} 27. Re1 {[%clk 0:00:27.6]} 27... Bh6
{[%clk 0:01:22.7]} 28. Qd1 {[%clk 0:00:27.7]} 28... Bf5 {[%clk 0:01:17]} 29. Bc1
{[%clk 0:00:22.3]} 29... Bc2 {[%clk 0:01:11]} 30. Bg5 {[%clk 0:00:08.5]} 30...
Bxd1 {[%clk 0:01:06.5]} 31. Rxe7 {[%clk 0:00:06.2]} 31... Bxg5 {[%clk
0:01:07.3]} 32. Re1 {[%clk 0:00:05.8]} 32... Bf3 {[%clk 0:01:06.4]} 33. hxg5
{[%clk 0:00:06.2]} 33... Qxg5 {[%clk 0:01:06.5]} 34. Re3 {[%clk 0:00:07.4]}
34... Bxg2 {[%clk 0:01:05.9]} 35. Kxg2 {[%clk 0:00:08.4]} 35... Qf5 {[%clk
0:01:07.2]} 36. a4 {[%clk 0:00:08]} 36... Kg7 {[%clk 0:01:07.1]} 37. c5 {[%clk
0:00:05.4]} 37... dxc5 {[%clk 0:01:07.3]} 38. f4 {[%clk 0:00:02.2]} 38... gxf3+
{[%clk 0:01:07.6]} 39. Rxf3 {[%clk 0:00:03.3]} 39... Qc2+ {[%clk 0:01:08]} 40.
Kh3 {[%clk 0:00:03.7]} 40... cxd4 {[%clk 0:01:09.9]} 41. cxd4 {[%clk 0:00:05]}
41... Qd1 {[%clk 0:01:07.9]} 42. Kg2 {[%clk 0:00:04.4]} 42... Qxd4 {[%clk
0:01:07.3]} 43. Rf4 {[%clk 0:00:05.6]} 43... Qxf4 {[%clk 0:01:04.7]} 44. gxf4
{[%clk 0:00:06.7]} 44... Kf6 {[%clk 0:01:06.6]} 45. Kf3 {[%clk 0:00:08.6]} 45...
Kf5 {[%clk 0:01:07.7]} 46. Ke3 {[%clk 0:00:10.5]} 46... c5 {[%clk 0:01:08.4]}
47. a5 {[%clk 0:00:12.3]} 47... b5 {[%clk 0:01:08.9]} 48. Kd3 {[%clk 0:00:14.2]}
48... Kxf4 {[%clk 0:01:08.1]} 49. a6 {[%clk 0:00:15.2]} 49... g5 {[%clk
0:01:08.1]} 50. Ke2 {[%clk 0:00:14.7]} 50... g4 {[%clk 0:01:09]} 51. Kf2 {[%clk
0:00:16.6]} 51... g3+ {[%clk 0:01:10]} 52. Ke2 {[%clk 0:00:18.5]} 52... c4
{[%clk 0:01:10.9]} 53. Kd2 {[%clk 0:00:20.4]} 53... g2 {[%clk 0:01:11.2]} 54.
Kc3 {[%clk 0:00:22.3]} 54... g1=Q {[%clk 0:01:11.6]} 55. Kb4 {[%clk 0:00:23.1]}
55... Qb6 {[%clk 0:01:11.8]} 56. Ka3 {[%clk 0:00:22.7]} 56... Qxa6+ {[%clk
0:01:12.6]} 57. Kb4 {[%clk 0:00:24.6]} 57... Qa4+ {[%clk 0:01:13.7]} 58. Kc5
{[%clk 0:00:23.9]} 58... c3 {[%clk 0:01:14.4]} 59. Kc6 {[%clk 0:00:18.8]} 59...
c2 {[%clk 0:01:15.3]} 60. Kb7 {[%clk 0:00:19.6]} 60... Qe4+ {[%clk 0:01:13.3]}
61. Kb8 {[%clk 0:00:21.5]} 61... c1=Q {[%clk 0:01:12.3]} 62. Kxa7 {[%clk
0:00:22.4]} 62... Qc7+ {[%clk 0:01:11.9]} 63. Ka6 {[%clk 0:00:23.6]} 63... Qa4#
{[%clk 0:01:12.3]} 0-1

[Event "*** Titled Tuesday Blitz"]
[Site "Chess.com"]
[Date "2019.09.03"]
[Round "4"]
[White "INLOVEWITHF"]
[Black "Malev212"]
[Result "1-0"]
[WhiteElo "2302"]
[BlackElo "2614"]
[TimeControl "180+2"]
[EndTime "15:53:15 PDT"]
[Termination "INLOVEWITHF won on time"]

1. e4 {[%clk 0:03:00.9]} 1... c5 {[%clk 0:03:00.9]} 2. Nf3 {[%clk 0:03:01.7]}
2... e6 {[%clk 0:03:00.9]} 3. d4 {[%clk 0:03:02.9]} 3... cxd4 {[%clk 0:03:01.7]}
4. Nxd4 {[%clk 0:03:04.8]} 4... Nf6 {[%clk 0:03:02.6]} 5. Nc3 {[%clk 0:03:05.4]}
5... Nc6 {[%clk 0:03:03.8]} 6. Ndb5 {[%clk 0:03:04.6]} 6... d6 {[%clk
0:03:04.5]} 7. Bf4 {[%clk 0:03:02.6]} 7... e5 {[%clk 0:03:05.7]} 8. Bg5 {[%clk
0:03:03.8]} 8... a6 {[%clk 0:03:07.1]} 9. Na3 {[%clk 0:02:54.9]} 9... b5 {[%clk
0:03:08.1]} 10. Nd5 {[%clk 0:02:56]} 10... Be7 {[%clk 0:03:08.7]} 11. Bxf6
{[%clk 0:02:56.7]} 11... Bxf6 {[%clk 0:03:10.6]} 12. c3 {[%clk 0:02:57.5]} 12...
Bg5 {[%clk 0:03:09.2]} 13. Nc2 {[%clk 0:02:56.6]} 13... O-O {[%clk 0:03:09.4]}
14. a4 {[%clk 0:02:56.1]} 14... bxa4 {[%clk 0:02:56.1]} 15. Rxa4 {[%clk
0:02:58]} 15... a5 {[%clk 0:02:56.9]} 16. Bc4 {[%clk 0:02:55]} 16... Rb8 {[%clk
0:02:57.7]} 17. b3 {[%clk 0:02:55]} 17... Kh8 {[%clk 0:02:58.1]} 18. h4 {[%clk
0:02:54.2]} 18... Bh6 {[%clk 0:02:56.1]} 19. Nce3 {[%clk 0:02:54.3]} 19... g6
{[%clk 0:02:53.2]} 20. h5 {[%clk 0:02:45.6]} 20... Qg5 {[%clk 0:02:08.9]} 21.
hxg6 {[%clk 0:02:44.3]} 21... fxg6 {[%clk 0:01:57.3]} 22. Qe2 {[%clk 0:02:24.1]}
22... Kg7 {[%clk 0:01:43.3]} 23. Ra1 {[%clk 0:02:17.1]} 23... Rf4 {[%clk
0:01:20.9]} 24. Bb5 {[%clk 0:01:38.2]} 24... Bd7 {[%clk 0:01:02.8]} 25. f3
{[%clk 0:01:05.1]} 25... Qg3+ {[%clk 0:00:44.9]} 26. Kd1 {[%clk 0:01:05.6]}
26... Nd4 {[%clk 0:00:38.7]} 27. cxd4 {[%clk 0:01:02.6]} 27... Bxb5 {[%clk
0:00:39.2]} 28. Qd2 {[%clk 0:00:44.9]} 28... Rxf3 {[%clk 0:00:15.8]} 29. gxf3
{[%clk 0:00:46.8]} 29... Qxf3+ {[%clk 0:00:17.2]} 30. Kc2 {[%clk 0:00:46]} 30...
Qxe4+ {[%clk 0:00:18.5]} 31. Kb2 {[%clk 0:00:43.1]} 31... exd4 {[%clk
0:00:18.9]} 32. Rxh6 {[%clk 0:00:41.7]} 32... dxe3 {[%clk 0:00:09]} 33. Qh2
{[%clk 0:00:25.8]} 33... Qd4+ {[%clk 0:00:07.5]} 34. Ka2 {[%clk 0:00:26.5]}
34... Qxd5 {[%clk 0:00:04.1]} 35. Rxh7+ {[%clk 0:00:26.8]} 35... Kf6 {[%clk
0:00:03.9]} 36. Qf4+ {[%clk 0:00:24.5]} 36... Ke6 {[%clk 0:00:03.7]} 37. Qxe3+
{[%clk 0:00:19.8]} 37... Qe5 {[%clk 0:00:04.4]} 38. Re1 {[%clk 0:00:13.5]} 38...
Qxe3 {[%clk 0:00:03.7]} 39. Rxe3+ {[%clk 0:00:15.4]} 39... Kd5 {[%clk
0:00:04.8]} 40. Rg7 {[%clk 0:00:15.6]} 40... Kd4 {[%clk 0:00:05.2]} 41. Rg3
{[%clk 0:00:15.9]} 41... Bd3 {[%clk 0:00:05.7]} 42. Rd7 {[%clk 0:00:15.8]} 42...
d5 {[%clk 0:00:06.3]} 43. Ra7 {[%clk 0:00:16.4]} 43... Rb5 {[%clk 0:00:06.8]}
44. Re7 {[%clk 0:00:16.4]} 44... Be4 {[%clk 0:00:05]} 45. Rg1 {[%clk 0:00:17.4]}
45... Bd3 {[%clk 0:00:04.9]} 46. Rd1 {[%clk 0:00:17.7]} 1-0

[Event "*** Titled Tuesday Blitz"]
[Site "Chess.com"]
[Date "2019.09.03"]
[Round "4"]
[White "Jenia84"]
[Black "LADIESGET2KNOWME"]
[Result "1/2-1/2"]
[WhiteElo "2258"]
[BlackElo "2459"]
[TimeControl "180+2"]
[EndTime "15:53:19 PDT"]
[Termination "Game drawn - insufficient material"]

1. e4 {[%clk 0:03:01.9]} 1... e6 {[%clk 0:03:01.3]} 2. d4 {[%clk 0:02:59.4]}
2... d5 {[%clk 0:03:03.2]} 3. Bd3 {[%clk 0:02:59]} 3... Nf6 {[%clk 0:03:03.8]}
4. e5 {[%clk 0:02:59.3]} 4... Nfd7 {[%clk 0:03:05.3]} 5. Nf3 {[%clk 0:02:57]}
5... c5 {[%clk 0:03:06.4]} 6. c3 {[%clk 0:02:58.2]} 6... Nc6 {[%clk 0:03:07.8]}
7. O-O {[%clk 0:02:58.3]} 7... Be7 {[%clk 0:03:09]} 8. Bf4 {[%clk 0:02:53]} 8...
g5 {[%clk 0:03:09.4]} 9. Be3 {[%clk 0:02:52.9]} 9... g4 {[%clk 0:03:08.2]} 10.
Nfd2 {[%clk 0:02:51]} 10... h5 {[%clk 0:03:07.8]} 11. f3 {[%clk 0:02:49.6]}
11... cxd4 {[%clk 0:03:04.6]} 12. cxd4 {[%clk 0:02:49.5]} 12... Qb6 {[%clk
0:03:04.7]} 13. Nb3 {[%clk 0:02:46.8]} 13... Ndxe5 {[%clk 0:03:04.4]} 14. fxg4
{[%clk 0:02:44.4]} 14... Nxg4 {[%clk 0:03:04]} 15. Qf3 {[%clk 0:02:40.8]} 15...
Nxe3 {[%clk 0:02:40.4]} 16. Qxe3 {[%clk 0:02:41.5]} 16... Bd7 {[%clk 0:02:36.7]}
17. Nc3 {[%clk 0:02:39.6]} 17... f5 {[%clk 0:02:28.1]} 18. Bxf5 {[%clk
0:02:30.2]} 18... O-O-O {[%clk 0:01:53.9]} 19. Bxe6 {[%clk 0:02:27.7]} 19... Nb4
{[%clk 0:01:34.9]} 20. Bxd7+ {[%clk 0:02:24.1]} 20... Rxd7 {[%clk 0:01:36.8]}
21. Rac1 {[%clk 0:02:19.1]} 21... Nc6 {[%clk 0:01:31]} 22. Nxd5 {[%clk
0:01:57.3]} 22... Rxd5 {[%clk 0:01:28.7]} 23. Qxe7 {[%clk 0:01:58.2]} 23... Rhd8
{[%clk 0:01:22]} 24. Qe6+ {[%clk 0:01:49.3]} 24... Kb8 {[%clk 0:01:21.7]} 25.
Rf8 {[%clk 0:01:43.7]} 25... Rxf8 {[%clk 0:01:05.3]} 26. Qxd5 {[%clk 0:01:43.4]}
26... Rd8 {[%clk 0:01:05]} 27. Qc5 {[%clk 0:01:07]} 27... Nxd4 {[%clk
0:00:51.3]} 28. Nxd4 {[%clk 0:01:01.5]} 28... Qxc5 {[%clk 0:00:50.3]} 29. Rxc5
{[%clk 0:01:01.2]} 29... Rxd4 {[%clk 0:00:51.7]} 30. Rxh5 {[%clk 0:00:49.8]}
30... Rd1+ {[%clk 0:00:53.1]} 31. Kf2 {[%clk 0:00:50.7]} 31... Rd2+ {[%clk
0:00:55]} 32. Kf3 {[%clk 0:00:50.4]} 32... Rxb2 {[%clk 0:00:56.4]} 33. Ra5
{[%clk 0:00:51.3]} 33... a6 {[%clk 0:00:55.1]} 34. h4 {[%clk 0:00:51.8]} 34...
Kc7 {[%clk 0:00:56.7]} 35. h5 {[%clk 0:00:52.5]} 35... Kd6 {[%clk 0:00:57.2]}
36. g4 {[%clk 0:00:52.2]} 36... Rb1 {[%clk 0:00:57.9]} 37. h6 {[%clk 0:00:52.7]}
37... Rf1+ {[%clk 0:00:54.1]} 38. Ke4 {[%clk 0:00:50.6]} 38... Rf8 {[%clk
0:00:49.5]} 39. h7 {[%clk 0:00:46.6]} 39... Rh8 {[%clk 0:00:50]} 40. Rh5 {[%clk
0:00:47.3]} 40... Ke6 {[%clk 0:00:50.7]} 41. g5 {[%clk 0:00:46.3]} 41... Kf7
{[%clk 0:00:47.8]} 42. Kf5 {[%clk 0:00:46.9]} 42... Kg7 {[%clk 0:00:48]} 43. g6
{[%clk 0:00:48.1]} 43... Rf8+ {[%clk 0:00:26.7]} 44. Kg5 {[%clk 0:00:48.4]}
44... b5 {[%clk 0:00:18.5]} 45. Rh3 {[%clk 0:00:44.4]} 45... Rc8 {[%clk
0:00:14.1]} 46. Kf5 {[%clk 0:00:38.5]} 46... a5 {[%clk 0:00:14.1]} 47. Ke5
{[%clk 0:00:35]} 47... b4 {[%clk 0:00:15.3]} 48. Kd4 {[%clk 0:00:34.2]} 48... a4
{[%clk 0:00:16.1]} 49. Rh2 {[%clk 0:00:26.3]} 49... b3 {[%clk 0:00:15.4]} 50.
axb3 {[%clk 0:00:26.6]} 50... axb3 {[%clk 0:00:17.3]} 51. h8=Q+ {[%clk
0:00:19.3]} 51... Rxh8 {[%clk 0:00:17.8]} 52. Rxh8 {[%clk 0:00:20.3]} 52... Kxh8
{[%clk 0:00:19.7]} 53. Kc3 {[%clk 0:00:21.4]} 53... Kg7 {[%clk 0:00:21.1]} 54.
Kxb3 {[%clk 0:00:22.5]} 54... Kxg6 {[%clk 0:00:23]} 1/2-1/2

[Event "*** Titled Tuesday Blitz"]
[Site "Chess.com"]
[Date "2019.09.03"]
[Round "4"]
[White "Joshukid"]
[Black "hansen"]
[Result "0-1"]
[WhiteElo "2634"]
[BlackElo "2871"]
[TimeControl "180+2"]
[EndTime "15:53:21 PDT"]
[Termination "hansen won by checkmate"]

1. Nf3 {[%clk 0:03:01.9]} 1... Nf6 {[%clk 0:03:00.2]} 2. c4 {[%clk 0:03:02.3]}
2... b6 {[%clk 0:03:00.8]} 3. g3 {[%clk 0:03:03]} 3... Bb7 {[%clk 0:03:01.7]} 4.
Bg2 {[%clk 0:03:04.3]} 4... g6 {[%clk 0:03:03.3]} 5. b3 {[%clk 0:03:04.6]} 5...
c5 {[%clk 0:03:04.7]} 6. Bb2 {[%clk 0:03:05.6]} 6... Bg7 {[%clk 0:03:06.4]} 7.
O-O {[%clk 0:03:07]} 7... d6 {[%clk 0:03:07.4]} 8. d4 {[%clk 0:03:08.1]} 8...
cxd4 {[%clk 0:03:09.3]} 9. Qxd4 {[%clk 0:03:09.1]} 9... Nbd7 {[%clk 0:03:10.3]}
10. Nc3 {[%clk 0:03:09.5]} 10... Rc8 {[%clk 0:03:11.4]} 11. Rac1 {[%clk
0:03:10]} 11... a6 {[%clk 0:02:57.2]} 12. Qd2 {[%clk 0:03:05.4]} 12... O-O
{[%clk 0:02:52.6]} 13. Rfd1 {[%clk 0:02:59.8]} 13... Rc5 {[%clk 0:02:50.9]} 14.
h4 {[%clk 0:02:39.9]} 14... Qa8 {[%clk 0:02:48.8]} 15. Ne1 {[%clk 0:02:37.9]}
15... Bxg2 {[%clk 0:02:35.1]} 16. Nxg2 {[%clk 0:02:39.8]} 16... b5 {[%clk
0:02:36.5]} 17. cxb5 {[%clk 0:02:27.1]} 17... axb5 {[%clk 0:02:36.4]} 18. b4
{[%clk 0:02:28.3]} 18... Re5 {[%clk 0:02:30]} 19. f4 {[%clk 0:02:06.7]} 19...
Re6 {[%clk 0:02:03.7]} 20. a3 {[%clk 0:02:00.6]} 20... Nb6 {[%clk 0:01:56.9]}
21. Nxb5 {[%clk 0:01:33.2]} 21... Ne4 {[%clk 0:01:57.8]} 22. Qc2 {[%clk
0:01:34.3]} 22... Rc8 {[%clk 0:01:58.6]} 23. Qb3 {[%clk 0:01:32.4]} 23... Bxb2
{[%clk 0:01:52.1]} 24. Rxc8+ {[%clk 0:01:27.4]} 24... Qxc8 {[%clk 0:01:47.1]}
25. Qxb2 {[%clk 0:01:28.5]} 25... Nxg3 {[%clk 0:01:48.2]} 26. e3 {[%clk
0:01:00.8]} 26... Re4 {[%clk 0:01:14.5]} 27. Kh2 {[%clk 0:00:43.6]} 27... Qg4
{[%clk 0:01:11.3]} 28. Re1 {[%clk 0:00:25.2]} 28... Nf5 {[%clk 0:00:52.8]} 29.
Qf2 {[%clk 0:00:25.9]} 29... Nd5 {[%clk 0:00:51.5]} 30. Nd4 {[%clk 0:00:15]}
30... Nxd4 {[%clk 0:00:24.6]} 31. exd4 {[%clk 0:00:16.9]} 31... Rxe1 {[%clk
0:00:25.6]} 32. Qxe1 {[%clk 0:00:17.9]} 32... Qf3 {[%clk 0:00:24]} 33. Qg3
{[%clk 0:00:18.6]} 33... Qe4 {[%clk 0:00:22.8]} 34. h5 {[%clk 0:00:17.7]} 34...
Qxd4 {[%clk 0:00:21.9]} 35. hxg6 {[%clk 0:00:19.2]} 35... hxg6 {[%clk
0:00:23.8]} 36. f5 {[%clk 0:00:20.6]} 36... Nf6 {[%clk 0:00:17.6]} 37. fxg6
{[%clk 0:00:20.7]} 37... Ng4+ {[%clk 0:00:19]} 38. Kh3 {[%clk 0:00:22.1]} 38...
f5 {[%clk 0:00:20.4]} 39. Nh4 {[%clk 0:00:17.9]} 39... e6 {[%clk 0:00:17.5]} 40.
Nf3 {[%clk 0:00:18.5]} 40... Qd3 {[%clk 0:00:14.6]} 41. Ng5 {[%clk 0:00:17.5]}
41... Qf1+ {[%clk 0:00:09.4]} 42. Qg2 {[%clk 0:00:16.8]} 42... Qd3+ {[%clk
0:00:09.4]} 43. Qg3 {[%clk 0:00:17.3]} 43... Qd5 {[%clk 0:00:09.4]} 44. Qf3
{[%clk 0:00:12.7]} 44... Qd2 {[%clk 0:00:05.2]} 45. Qg2 {[%clk 0:00:09.7]} 45...
Qxg5 {[%clk 0:00:05.8]} 46. Qa8+ {[%clk 0:00:09]} 46... Kg7 {[%clk 0:00:07]} 47.
Qe8 {[%clk 0:00:02.3]} 47... Qh6+ {[%clk 0:00:06.7]} 48. Kg3 {[%clk 0:00:03.5]}
48... Qh2+ {[%clk 0:00:08.2]} 49. Kf3 {[%clk 0:00:05.4]} 49... Qf2# {[%clk
0:00:10]} 0-1

[Event "*** Titled Tuesday Blitz"]
[Site "Chess.com"]
[Date "2019.09.03"]
[Round "4"]
[White "ChristianAlm"]
[Black "Komissarov_alex"]
[Result "1/2-1/2"]
[WhiteElo "2301"]
[BlackElo "2106"]
[TimeControl "180+2"]
[EndTime "15:53:24 PDT"]
[Termination "Game drawn by repetition"]

1. d4 {[%clk 0:03:01.9]} 1... Nf6 {[%clk 0:02:52.1]} 2. Bg5 {[%clk 0:03:02.2]}
2... Ne4 {[%clk 0:02:48.5]} 3. Bf4 {[%clk 0:03:01.7]} 3... d5 {[%clk 0:02:48.3]}
4. e3 {[%clk 0:03:00.6]} 4... c5 {[%clk 0:02:47.1]} 5. Bd3 {[%clk 0:03:01.7]}
5... Nc6 {[%clk 0:02:44.2]} 6. Bxe4 {[%clk 0:03:01.5]} 6... dxe4 {[%clk
0:02:43.7]} 7. d5 {[%clk 0:03:02.3]} 7... Nb4 {[%clk 0:02:42.3]} 8. Nc3 {[%clk
0:03:02.5]} 8... g6 {[%clk 0:02:34.4]} 9. a3 {[%clk 0:02:50]} 9... Na6 {[%clk
0:02:25.2]} 10. Nxe4 {[%clk 0:02:46.5]} 10... Bg7 {[%clk 0:02:25.2]} 11. c3
{[%clk 0:02:39.3]} 11... O-O {[%clk 0:02:24.8]} 12. Nf3 {[%clk 0:02:33.2]} 12...
b5 {[%clk 0:02:22.2]} 13. d6 {[%clk 0:02:29.3]} 13... Bb7 {[%clk 0:02:11.9]} 14.
Ng3 {[%clk 0:01:51.9]} 14... Bxf3 {[%clk 0:01:56]} 15. Qxf3 {[%clk 0:01:52.4]}
15... e5 {[%clk 0:01:55.7]} 16. Bg5 {[%clk 0:01:06]} 16... Qxg5 {[%clk
0:01:50.9]} 17. Qc6 {[%clk 0:01:06.3]} 17... b4 {[%clk 0:01:18.6]} 18. axb4
{[%clk 0:01:01.5]} 18... Nxb4 {[%clk 0:01:11]} 19. cxb4 {[%clk 0:01:01.6]} 19...
cxb4 {[%clk 0:01:12.4]} 20. O-O {[%clk 0:00:53.6]} 20... a5 {[%clk 0:01:11.5]}
21. Ne4 {[%clk 0:00:44.2]} 21... Qf5 {[%clk 0:01:08.6]} 22. Rfd1 {[%clk
0:00:34]} 22... Rfc8 {[%clk 0:01:02.4]} 23. Qd5 {[%clk 0:00:32.9]} 23... Rd8
{[%clk 0:00:55.9]} 24. Nc5 {[%clk 0:00:32.2]} 24... Bf8 {[%clk 0:00:50.9]} 25.
Ne4 {[%clk 0:00:24.8]} 25... Ra6 {[%clk 0:00:43.6]} 26. d7 {[%clk 0:00:23.7]}
26... Ra7 {[%clk 0:00:38.1]} 27. Nc5 {[%clk 0:00:24.6]} 27... Bxc5 {[%clk
0:00:36.3]} 28. Qxc5 {[%clk 0:00:26.5]} 28... Raxd7 {[%clk 0:00:35.5]} 29. Rxd7
{[%clk 0:00:25.4]} 29... Qxd7 {[%clk 0:00:35]} 30. g3 {[%clk 0:00:20.6]} 30...
Qd5 {[%clk 0:00:33]} 31. Qxa5 {[%clk 0:00:17.5]} 31... Qxa5 {[%clk 0:00:33.4]}
32. Rxa5 {[%clk 0:00:17.9]} 32... Rd2 {[%clk 0:00:34.8]} 33. Rxe5 {[%clk
0:00:18.6]} 33... Rxb2 {[%clk 0:00:35.4]} 34. Rb5 {[%clk 0:00:18.1]} 34... Rb1+
{[%clk 0:00:35.2]} 35. Kg2 {[%clk 0:00:18.8]} 35... b3 {[%clk 0:00:36.1]} 36. h4
{[%clk 0:00:20.7]} 36... b2 {[%clk 0:00:34.7]} 37. h5 {[%clk 0:00:21.1]} 37...
Kg7 {[%clk 0:00:29.4]} 38. hxg6 {[%clk 0:00:21.5]} 38... hxg6 {[%clk 0:00:26.1]}
39. Rb7 {[%clk 0:00:22.5]} 39... Kf6 {[%clk 0:00:24.7]} 40. Kf3 {[%clk
0:00:23.3]} 40... Ke5 {[%clk 0:00:23.8]} 41. Rb4 {[%clk 0:00:20.3]} 41... Kd5
{[%clk 0:00:23]} 42. Rb8 {[%clk 0:00:21.6]} 42... Kc5 {[%clk 0:00:22.4]} 43. Ke4
{[%clk 0:00:20.5]} 43... Kc4 {[%clk 0:00:22.7]} 44. f4 {[%clk 0:00:20.5]} 44...
Kc3 {[%clk 0:00:22.2]} 45. Rc8+ {[%clk 0:00:21.7]} 45... Kd2 {[%clk 0:00:20.7]}
46. Rd8+ {[%clk 0:00:22.7]} 46... Ke2 {[%clk 0:00:21]} 47. Rb8 {[%clk
0:00:23.7]} 47... Kd2 {[%clk 0:00:19.5]} 48. g4 {[%clk 0:00:23]} 48... Kc2
{[%clk 0:00:18.7]} 49. Rc8+ {[%clk 0:00:23.6]} 49... Kd2 {[%clk 0:00:19.3]} 50.
Rd8+ {[%clk 0:00:22.7]} 50... Kc2 {[%clk 0:00:19.8]} 51. Rc8+ {[%clk 0:00:24]}
51... Kd2 {[%clk 0:00:20.5]} 52. Rb8 {[%clk 0:00:25.9]} 52... Kc2 {[%clk
0:00:20.8]} 53. Rc8+ {[%clk 0:00:21.7]} 1/2-1/2

[Event "*** Titled Tuesday Blitz"]
[Site "Chess.com"]
[Date "2019.09.03"]
[Round "4"]
[White "WPWPWP-2015"]
[Black "plumalka"]
[Result "1-0"]
[WhiteElo "2424"]
[BlackElo "2121"]
[TimeControl "180+2"]
[EndTime "15:53:30 PDT"]
[Termination "WPWPWP-2015 won by resignation"]

1. e4 {[%clk 0:03:00.1]} 1... c5 {[%clk 0:02:58.9]} 2. Nf3 {[%clk 0:03:00.2]}
2... d6 {[%clk 0:02:59.6]} 3. d4 {[%clk 0:02:54.7]} 3... cxd4 {[%clk 0:03:00.6]}
4. Nxd4 {[%clk 0:02:55.9]} 4... Nf6 {[%clk 0:03:01]} 5. Nc3 {[%clk 0:02:57.1]}
5... Bd7 {[%clk 0:03:02.1]} 6. h3 {[%clk 0:02:57.1]} 6... Nc6 {[%clk 0:03:01.1]}
7. Be3 {[%clk 0:02:57.4]} 7... g6 {[%clk 0:02:59.2]} 8. Bc4 {[%clk 0:02:56.7]}
8... Bg7 {[%clk 0:03:00]} 9. O-O {[%clk 0:02:57]} 9... O-O {[%clk 0:03:00.4]}
10. a4 {[%clk 0:02:57.7]} 10... Rc8 {[%clk 0:03:00.9]} 11. Bb3 {[%clk
0:02:58.2]} 11... Nxd4 {[%clk 0:02:59.8]} 12. Bxd4 {[%clk 0:02:58.5]} 12... Bc6
{[%clk 0:03:01.1]} 13. Re1 {[%clk 0:02:58.8]} 13... Nd7 {[%clk 0:03:01.4]} 14.
Bxg7 {[%clk 0:02:57.7]} 14... Kxg7 {[%clk 0:03:03.3]} 15. a5 {[%clk 0:02:57.5]}
15... Nc5 {[%clk 0:03:03.7]} 16. Bd5 {[%clk 0:02:56.9]} 16... e6 {[%clk
0:02:59.8]} 17. Bxc6 {[%clk 0:02:45.3]} 17... bxc6 {[%clk 0:03:01.7]} 18. Qd2
{[%clk 0:02:41.3]} 18... Qe7 {[%clk 0:03:00]} 19. b4 {[%clk 0:02:32.1]} 19...
Na6 {[%clk 0:02:56.8]} 20. Rad1 {[%clk 0:02:29.9]} 20... Rfd8 {[%clk 0:02:51.5]}
21. Qd3 {[%clk 0:02:18]} 21... Nc7 {[%clk 0:02:49.9]} 22. Qd4+ {[%clk 0:02:13]}
22... e5 {[%clk 0:02:50.7]} 23. Qxa7 {[%clk 0:02:09.1]} 23... Rb8 {[%clk
0:02:47.4]} 24. Rb1 {[%clk 0:02:03.4]} 24... f5 {[%clk 0:02:41.2]} 25. b5 {[%clk
0:01:55.9]} 25... Ra8 {[%clk 0:02:24.8]} 26. Qb6 {[%clk 0:01:51.8]} 26... c5
{[%clk 0:02:24.4]} 27. Qc6 {[%clk 0:01:27]} 27... Ne6 {[%clk 0:02:21.6]} 28. Nd5
{[%clk 0:01:19.2]} 28... Qg5 {[%clk 0:02:15.7]} 29. b6 {[%clk 0:01:12.8]} 29...
Nd4 {[%clk 0:02:09.8]} 30. Qc7+ {[%clk 0:00:56.8]} 30... Kh6 {[%clk 0:02:07.4]}
31. Rb3 {[%clk 0:00:54.6]} 31... Rac8 {[%clk 0:01:39.8]} 32. Qe7 {[%clk
0:00:43.2]} 32... Qd2 {[%clk 0:01:32.4]} 33. Qh4+ {[%clk 0:00:40.6]} 33... Kg7
{[%clk 0:01:31.6]} 34. Qf6+ {[%clk 0:00:38.7]} 34... Kh6 {[%clk 0:01:31.9]} 35.
Qh4+ {[%clk 0:00:20.8]} 35... Kg7 {[%clk 0:01:32.7]} 36. Rf1 {[%clk 0:00:18.5]}
36... Qxa5 {[%clk 0:01:07.1]} 37. Qf6+ {[%clk 0:00:18.2]} 37... Kh6 {[%clk
0:01:07.6]} 38. Rg3 {[%clk 0:00:16.5]} 38... Qd2 {[%clk 0:01:05.1]} 39. Qh4+
{[%clk 0:00:16.4]} 39... Kg7 {[%clk 0:01:05.9]} 40. Qf6+ {[%clk 0:00:16.4]}
40... Kh6 {[%clk 0:01:07.2]} 41. b7 {[%clk 0:00:15.2]} 41... Rb8 {[%clk
0:00:59.8]} 42. exf5 {[%clk 0:00:15.1]} 42... Ne2+ {[%clk 0:00:59.3]} 43. Kh2
{[%clk 0:00:15.7]} 43... Nxg3 {[%clk 0:00:59.7]} 44. Qh4+ {[%clk 0:00:14.4]}
44... Kg7 {[%clk 0:01:00.2]} 45. Qe7+ {[%clk 0:00:08.3]} 45... Kh6 {[%clk
0:01:00.1]} 46. Qh4+ {[%clk 0:00:05.8]} 46... Kg7 {[%clk 0:01:01.1]} 47. f6+
{[%clk 0:00:04.9]} 47... Kf7 {[%clk 0:00:47.7]} 48. Qxh7+ {[%clk 0:00:04.6]}
48... Ke6 {[%clk 0:00:48.4]} 49. Nc7+ {[%clk 0:00:05.2]} 49... Kf5 {[%clk
0:00:43.1]} 50. fxg3+ {[%clk 0:00:06.3]} 50... Ke4 {[%clk 0:00:44.2]} 51. Qxg6+
{[%clk 0:00:06.7]} 51... Kd4 {[%clk 0:00:45]} 52. Ne6+ {[%clk 0:00:06.2]} 52...
Kc4 {[%clk 0:00:44.5]} 53. Nxd8 {[%clk 0:00:06.2]} 53... Rxd8 {[%clk 0:00:45.6]}
54. Qf7+ {[%clk 0:00:06.3]} 54... Kc3 {[%clk 0:00:45]} 55. Qb3+ {[%clk
0:00:06.8]} 55... Kd4 {[%clk 0:00:45.8]} 56. b8=Q {[%clk 0:00:07.2]} 1-0